bitfinex/quotes_BTCUSD_20220213
["timestamp","ask_amount","ask_price","bid_price","bid_amount"]
[1644722084579,0.571387,42229.0,42226.0,0.20121245]
[1644722084980,0.571387,42229.0,42226.0,0.20070702]
[1644722085381,0.31588149,42230.0,42226.0,0.20087583]
[1644722086285,0.31588149,42230.0,42227.0,0.20070702]
[1644722086680,0.31588149,42230.0,42227.0,0.20087583]
[1644722086879,0.31588149,42230.0,42227.0,0.00016881]
[1644722087080,0.31588149,42230.0,42226.0,0.20121245]
[1644722087335,0.31588149,42230.0,42226.0,0.20070702]
[1644722087524,0.31588149,42230.0,42226.0,0.00050543]
[1644722087923,0.31588149,42230.0,42226.0,0.00067424]
[1644722088327,0.31588149,42230.0,42226.0,0.00056573]
[1644722088523,0.31588149,42230.0,42226.0,0.20087583]
[1644722088723,0.31588149,42230.0,42226.0,0.20121245]
[1644722089323,0.31588149,42230.0,42226.0,0.00050543]
[1644722089524,0.31588149,42230.0,42226.0,0.00067424]
[1644722089727,0.31588149,42230.0,42226.0,0.00016881]
[1644722089925,0.31588149,42230.0,42225.0,0.20070702]
[1644722091277,0.31588149,42230.0,42225.0,0.20087583]
[1644722091677,0.31588149,42230.0,42225.0,0.19587583]
[1644722092278,0.27846534,42229.0,42224.0,0.00050545]
[1644722092679,0.26278149,42230.0,42224.0,0.00050545]
[1644722093278,0.26278149,42230.0,42223.0,0.00016881]
[1644722093483,0.2736464,42229.0,42224.0,0.00050545]
[1644722093679,0.26278149,42230.0,42224.0,0.00050545]
[1644722094581,0.26278149,42230.0,42223.0,0.00016881]
[1644722094833,0.27214285,42229.0,42223.0,0.00016881]
[1644722095028,0.27214285,42229.0,42222.0,0.03126881]
[1644722096030,0.49214285,42229.0,42223.0,0.0005054]
[1644722096228,0.49214285,42229.0,42223.0,0.00067421]
[1644722097026,0.49214285,42229.0,42223.0,0.00016881]
[1644722097227,0.49214285,42229.0,42224.0,0.0005054]
[1644722098129,0.49214285,42229.0,42223.0,0.00016881]
[1644722098329,0.22,42229.0,42224.0,0.0005054]
[1644722099375,0.22,42229.0,42223.0,0.00016881]
[1644722099576,0.22,42229.0,42224.0,0.0005054]
[1644722100578,0.22,42229.0,42223.0,0.00016881]
[1644722100877,0.22,42229.0,42224.0,0.0005054]
[1644722101277,0.331387,42228.0,42224.0,0.0005054]
[1644722101676,0.331387,42228.0,42223.0,0.00016881]
[1644722101878,0.331387,42228.0,42224.0,0.0005054]
[1644722102929,0.331387,42228.0,42223.0,0.00016881]
[1644722103126,0.331387,42228.0,42224.0,0.0005054]
[1644722103735,0.331387,42226.0,42224.0,0.0005054]
[1644722103932,0.384487,42225.0,42224.0,0.0005054]
[1644722104132,0.331387,42224.0,42223.0,0.00016881]
[1644722104329,0.384487,42224.0,42222.0,0.03126881]
[1644722104528,0.434487,42224.0,42222.0,0.03126881]
[1644722105328,0.534487,42224.0,42222.0,0.03126881]
[1644722106084,0.29577652,42223.0,42222.0,0.03126881]
[1644722106283,0.96247015,42223.0,42222.0,0.00321549]
[1644722108182,1.231387,42222.0,42220.0,0.00160278]
[1644722108381,0.70360654,42221.0,42220.0,0.00160278]
[1644722108983,0.70360654,42221.0,42220.0,0.0011]
[1644722109187,0.80360654,42221.0,42220.0,0.00547973]
[1644722109384,0.80360654,42221.0,42220.0,0.00985946]
[1644722109385,0.90360654,42221.0,42220.0,0.00985946]
[1644722110632,0.75360654,42221.0,42220.0,0.00985946]
[1644722111436,0.434487,42221.0,42220.0,0.00985946]
[1644722111932,0.484487,42221.0,42220.0,0.00985946]
[1644722114103,0.77640939,42221.0,42220.0,0.00985946]
[1644722114300,0.87640939,42221.0,42220.0,0.00985946]
[1644722116605,0.87640939,42221.0,42220.0,0.01002933]
[1644722123289,0.584487,42221.0,42220.0,0.01002933]
[1644722125338,0.87266336,42221.0,42220.0,0.01002933]
[1644722128610,0.87266336,42221.0,42212.0,0.00186397]
[1644722128611,1.231387,42220.0,42212.0,0.00186397]
[1644722128808,0.331387,42214.0,42212.0,0.00186397]
[1644722129008,0.470907,42214.0,42212.0,0.00186397]
[1644722129208,0.331387,42212.0,42210.0,0.0022]
[1644722129412,0.0531,42211.0,42210.0,0.0022]
[1644722129811,0.331387,42210.0,42206.0,0.0011]
[1644722130010,0.05,42207.0,42206.0,0.0011]
[1644722130211,0.384487,42207.0,42206.0,0.0011]
[1644722130413,0.1531,42207.0,42206.0,0.0011]
[1644722130612,0.331387,42206.0,42201.0,0.0111]
[1644722130810,0.331387,42204.0,42201.0,0.0111]
[1644722131010,0.331387,42202.0,42201.0,0.0111]
[1644722131210,0.384487,42202.0,42201.0,0.0111]
[1644722131410,0.384487,42202.0,42199.0,0.0022]
[1644722131411,0.90457234,42201.0,42199.0,0.0022]
[1644722131613,0.0531,42200.0,42199.0,0.0022]
[1644722132661,0.0531,42200.0,42198.0,0.05287445]
[1644722132662,0.72234596,42200.0,42198.0,0.05287445]
[1644722132863,0.65533414,42199.0,42198.0,0.0011]
[1644722133061,0.70843414,42199.0,42198.0,0.0011]
[1644722134661,0.69909364,42199.0,42198.0,0.0011]
[1644722134871,0.68889364,42199.0,42198.0,0.0011]
[1644722135462,0.21315589,42197.0,42195.0,0.0421]
[1644722135667,0.21315589,42197.0,42196.0,0.00050073]
[1644722135668,0.54463289,42197.0,42196.0,0.00050073]
[1644722135864,0.88663149,42197.0,42196.0,0.00050073]
[1644722136087,0.6734756,42197.0,42196.0,0.00050073]
[1644722136286,0.27788677,42197.0,42196.0,0.00050073]
[1644722136587,0.331492,42197.0,42195.0,0.0421]
[1644722136785,0.0531,42196.0,42195.0,0.0421]
[1644722137887,0.0531,42201.0,42195.0,0.0421]
[1644722138087,0.3,42204.0,42195.0,0.0421]
[1644722138088,0.331492,42204.0,42195.0,0.0421]
[1644722138588,0.331492,42197.0,42195.0,0.0421]
[1644722139945,0.551492,42197.0,42195.0,0.0421]
[1644722140348,0.551492,42197.0,42195.0,0.04428873]
[1644722143986,0.551492,42197.0,42195.0,0.04445816]
[1644722145588,0.551492,42197.0,42195.0,0.04226943]
[1644722146989,0.604592,42197.0,42195.0,0.04226943]
[1644722151495,0.05,42196.0,42193.0,0.0021]
[1644722151701,0.19529907,42195.0,42193.0,0.0021]
[1644722151892,0.19529907,42195.0,42193.0,0.00016944]
[1644722152089,0.19529907,42195.0,42192.0,0.03016944]
[1644722152488,0.20166962,42194.0,42192.0,0.03016944]
[1644722152689,0.384592,42193.0,42192.0,0.03016944]
[1644722152891,0.534592,42193.0,42192.0,0.03]
[1644722153093,0.5,42192.0,42191.0,0.0111]
[1644722153290,0.5,42192.0,42190.0,0.0011]
[1644722153291,0.881492,42191.0,42190.0,0.0011]
[1644722153592,0.984592,42191.0,42190.0,0.0011]
[1644722153793,1.084592,42191.0,42190.0,0.0011]
[1644722154389,0.584592,42191.0,42190.0,0.0011]
[1644722155538,0.87710754,42191.0,42190.0,0.0011]
[1644722159593,0.67710754,42191.0,42190.0,0.0011]
[1644722160194,0.384592,42191.0,42190.0,0.0011]
[1644722160492,0.38660296,42191.0,42190.0,0.0011]
[1644722160898,0.062507,42194.0,42191.0,0.29691318]
[1644722162639,0.22,42197.0,42192.0,0.16620517]
[1644722162840,0.22,42197.0,42191.0,0.29691318]
[1644722162841,0.22,42197.0,42193.0,0.331528]
[1644722163037,0.22,42197.0,42192.0,0.17018194]
[1644722163239,0.22,42197.0,42192.0,0.00028068]
[1644722164140,0.22,42197.0,42191.0,0.29691318]
[1644722164338,0.22,42197.0,42192.0,0.00049898]
[1644722164741,0.08991444,42195.0,42192.0,0.00049898]
[1644722165039,0.22,42197.0,42192.0,0.00049898]
[1644722165441,0.22,42197.0,42191.0,0.29691318]
[1644722165641,0.22,42197.0,42192.0,0.00228628]
[1644722166094,0.3049691,42197.0,42192.0,0.17217593]
[1644722166293,0.08002576,42199.0,42192.0,0.17217593]
[1644722166489,0.33544008,42207.0,42192.0,0.17167695]
[1644722166690,0.48544008,42207.0,42192.0,0.0017873]
[1644722166889,0.48544008,42207.0,42192.0,0.00195592]
[1644722167089,0.71552737,42207.0,42192.0,0.00195592]
[1644722167489,0.71552737,42207.0,42192.0,0.18387635]
[1644722167689,0.06536564,42200.0,42192.0,0.18387635]
[1644722167889,0.06536564,42200.0,42192.0,0.00195592]
[1644722168890,0.06536564,42200.0,42192.0,0.23128663]
[1644722169291,0.06536564,42200.0,42194.0,0.00049897]
[1644722169939,0.06536564,42200.0,42194.0,0.00066759]
[1644722170138,0.06536564,42200.0,42194.0,0.00016862]
[1644722170342,0.06536564,42200.0,42195.0,0.00049896]
[1644722171440,0.06536564,42200.0,42194.0,0.00016862]
[1644722171642,0.06536564,42200.0,42195.0,0.00049896]
[1644722171842,0.06536564,42200.0,42195.0,0.20114323]
[1644722172043,0.06536564,42200.0,42195.0,0.20131185]
[1644722172242,0.06536564,42200.0,42195.0,0.20114323]
[1644722172441,0.062507,42199.0,42195.0,0.20114323]
[1644722172643,0.062507,42199.0,42194.0,0.20064427]
[1644722172843,0.28536564,42200.0,42195.0,0.00049896]
[1644722173142,0.28536564,42200.0,42195.0,0.20114323]
[1644722173341,0.28536564,42200.0,42195.0,0.00066758]
[1644722173589,0.28536564,42200.0,42197.0,0.20064427]
[1644722173792,0.062507,42199.0,42197.0,0.20064427]
[1644722174088,0.06536564,42200.0,42197.0,0.20064427]
[1644722174288,0.06536564,42200.0,42196.0,0.20064427]
[1644722174490,0.06536564,42200.0,42196.0,0.20081289]
[1644722174689,0.062507,42199.0,42196.0,0.20081289]
[1644722175289,0.062507,42199.0,42196.0,0.20064427]
[1644722175489,0.062507,42199.0,42196.0,0.20081289]
[1644722175889,0.062507,42199.0,42197.0,0.00210947]
[1644722176091,0.062507,42199.0,42197.0,0.20292236]
[1644722176392,0.06536564,42200.0,42197.0,0.20275374]
[1644722176791,0.062507,42199.0,42197.0,0.20292236]
[1644722177192,0.06536564,42200.0,42197.0,0.20292236]
[1644722177636,0.06536564,42200.0,42197.0,0.20275374]
[1644722177839,0.06536564,42200.0,42197.0,0.20292236]
[1644722178836,0.06536564,42200.0,42197.0,0.20275374]
[1644722179040,0.06536564,42200.0,42197.0,0.20292236]
[1644722179236,0.06536564,42200.0,42198.0,0.20064427]
[1644722179440,0.06536564,42200.0,42198.0,0.20081289]
[1644722180443,0.062507,42199.0,42198.0,0.20081289]
[1644722181187,0.062507,42199.0,42198.0,0.20064427]
[1644722181789,0.06536564,42200.0,42198.0,0.20064427]
[1644722182388,0.062507,42199.0,42198.0,0.20064427]
[1644722182589,0.062507,42199.0,42198.0,0.20081289]
[1644722183589,0.062507,42199.0,42198.0,0.20064427]
[1644722183992,0.062507,42201.0,42198.0,0.20064427]
[1644722184592,0.062507,42201.0,42197.0,0.20081289]
[1644722184848,0.062507,42201.0,42197.0,0.20110632]
[1644722185640,0.062507,42201.0,42198.0,0.20064427]
[1644722185840,0.062507,42201.0,42198.0,0.20081289]
[1644722186040,0.062507,42201.0,42199.0,0.00206564]
[1644722186439,0.062507,42201.0,42199.0,0.00223426]
[1644722187242,0.1668,42206.0,42199.0,0.00223426]
[1644722187440,0.1668,42206.0,42199.0,0.4527044]
[1644722187441,0.062507,42205.0,42199.0,0.4527044]
[1644722187640,0.05,42206.0,42199.0,0.20287853]
[1644722187843,0.062507,42204.0,42199.0,0.20287853]
[1644722188242,0.06681755,42205.0,42199.0,0.20287853]
[1644722188441,0.062507,42204.0,42199.0,0.20334302]
[1644722189497,0.062507,42204.0,42199.0,0.20287853]
[1644722189694,0.062507,42202.0,42199.0,0.20334286]
[1644722189896,0.062507,42204.0,42199.0,0.20334286]
[1644722190095,0.062507,42204.0,42199.0,0.00252997]
[1644722190296,0.0531,42203.0,42199.0,0.00252997]
[1644722190494,0.062507,42202.0,42199.0,0.00072151]
[1644722190697,0.062507,42202.0,42199.0,0.00025718]
[1644722190894,0.062507,42202.0,42199.0,0.00072151]
[1644722191796,0.062507,42202.0,42199.0,0.00025718]
[1644722192000,0.062507,42202.0,42199.0,8.856e-05]
[1644722193642,0.062507,42207.0,42200.0,0.22280788]
[1644722194841,0.07753976,42204.0,42200.0,0.22280788]
[1644722195041,0.062507,42203.0,42200.0,0.22280788]
[1644722195642,0.062507,42203.0,42201.0,0.0018359]
[1644722196488,0.062507,42203.0,42200.0,0.03237766]
[1644722196687,0.062507,42206.0,42200.0,0.03237766]
[1644722199493,0.062507,42206.0,42201.0,0.25449097]
[1644722200353,0.062507,42206.0,42200.0,0.03237766]
[1644722200555,0.062507,42204.0,42202.0,8.861e-05]
[1644722201455,0.00104164,42205.0,42202.0,8.861e-05]
[1644722201855,0.062507,42204.0,42202.0,8.861e-05]
[1644722202256,0.00104164,42205.0,42202.0,8.861e-05]
[1644722202656,0.062507,42204.0,42202.0,8.861e-05]
[1644722203257,0.00104164,42205.0,42202.0,8.861e-05]
[1644722204697,0.00104164,42205.0,42204.0,0.20064427]
[1644722204896,0.00104164,42205.0,42204.0,0.631528]
[1644722205100,6.62e-05,42205.0,42204.0,0.93238796]
[1644722205297,6.62e-05,42205.0,42204.0,0.631528]
[1644722205894,0.00150331,42208.0,42205.0,0.331528]
[1644722206093,0.00150331,42208.0,42207.0,0.331528]
[1644722206393,0.00103921,42208.0,42207.0,0.57011457]
[1644722206595,0.00103921,42208.0,42207.0,0.48972989]
[1644722206995,0.00103921,42208.0,42207.0,0.7812149]
[1644722207645,0.00103921,42208.0,42207.0,0.53007158]
[1644722209442,0.00103921,42208.0,42207.0,0.73094466]
[1644722209841,0.00103921,42208.0,42207.0,0.53007158]
[1644722210642,0.00046477,42210.0,42207.0,0.73273986]
[1644722210844,0.00046477,42210.0,42207.0,0.20266828]
[1644722211100,0.062507,42209.0,42207.0,0.0017952]
[1644722212095,0.0531,42208.0,42207.0,0.0017952]
[1644722214098,0.33304663,42208.0,42207.0,0.0017952]
[1644722215640,0.33304663,42208.0,42206.0,0.00179735]
[1644722215841,0.39555363,42208.0,42206.0,0.00179735]
[1644722216140,0.4597304,42208.0,42206.0,0.00179735]
[1644722217043,0.17978377,42208.0,42206.0,0.00179735]
[1644722217641,0.24697679,42207.0,42206.0,0.00179735]
[1644722217843,0.52823727,42207.0,42206.0,0.00179735]
[1644722218047,0.58133727,42207.0,42206.0,0.00179735]
[1644722218243,0.88249153,42207.0,42206.0,0.00179735]
[1644722220086,0.68133727,42207.0,42206.0,0.00179735]
[1644722220488,0.74384427,42207.0,42205.0,0.0018253]
[1644722220691,0.36549034,42206.0,42205.0,0.0018253]
[1644722220889,0.51859034,42206.0,42205.0,0.0018253]
[1644722226490,0.00019226,42199.0,42197.0,0.20087308]
[1644722226690,0.062507,42198.0,42196.0,0.20087308]
[1644722227490,0.062507,42198.0,42197.0,0.20087308]
[1644722228891,0.062507,42198.0,42197.0,0.19087308]
[1644722229091,0.01060296,42198.0,42195.0,0.25114332]
[1644722229491,0.01060296,42198.0,42195.0,0.25164279]
[1644722229941,0.010609,42198.0,42195.0,0.25164279]
[1644722230140,0.00019226,42199.0,42195.0,0.25164279]
[1644722230341,0.00019226,42199.0,42195.0,0.25114332]
[1644722230538,0.00108032,42197.0,42195.0,0.25164279]
[1644722230940,0.00108032,42197.0,42196.0,0.25114332]
[1644722231340,0.00108032,42197.0,42196.0,0.24614332]
[1644722232140,0.00108032,42197.0,42194.0,0.00049947]
[1644722232141,0.01168932,42197.0,42194.0,0.00049947]
[1644722232338,0.00108032,42197.0,42194.0,0.00049947]
[1644722232739,0.00108032,42197.0,42193.0,0.53175262]
[1644722232939,0.00108032,42197.0,42193.0,0.53208348]
[1644722234092,0.00108032,42197.0,42193.0,0.531584]
[1644722234292,0.00108032,42197.0,42193.0,0.53208348]
[1644722234592,0.00108032,42197.0,42193.0,0.00049948]
[1644722235093,0.00108032,42197.0,42193.0,0.0006681]
[1644722235292,0.00108032,42197.0,42193.0,0.00016862]
[1644722235592,0.00108032,42197.0,42193.0,0.00049948]
[1644722235892,0.00127258,42199.0,42193.0,0.0006681]
[1644722236092,0.010609,42198.0,42193.0,0.00049948]
[1644722236495,0.00127258,42199.0,42192.0,0.00016862]
[1644722236693,0.010609,42198.0,42193.0,0.00049948]
[1644722237540,0.010609,42198.0,42192.0,0.00016862]
[1644722237740,0.010609,42198.0,42193.0,0.00049948]
[1644722238842,0.010609,42198.0,42192.0,0.00016862]
[1644722239046,0.010609,42198.0,42196.0,0.20094036]
[1644722240446,0.01168932,42197.0,42196.0,0.20094036]
[1644722242105,0.01168932,42197.0,42194.0,0.25165463]
[1644722242306,0.00108032,42197.0,42196.0,0.25115516]
[1644722242506,0.00108032,42197.0,42196.0,0.21656249]
[1644722242705,0.00108032,42197.0,42196.0,0.51794516]
[1644722243104,0.00108032,42197.0,42196.0,0.74720163]
[1644722243506,0.00108032,42197.0,42196.0,0.44581896]
[1644722244406,0.00108032,42197.0,42196.0,1.48837657]
[1644722244606,0.00017637,42197.0,42196.0,0.97388863]
[1644722244864,0.00017637,42197.0,42196.0,1.31716432]
[1644722245143,0.00017637,42197.0,42196.0,0.75068108]
[1644722245742,0.00019226,42199.0,42196.0,0.81131572]
[1644722245743,0.00142552,42199.0,42196.0,0.81131572]
[1644722245945,0.00142552,42199.0,42197.0,0.63273137]
[1644722246541,0.00142552,42199.0,42197.0,0.84238948]
[1644722246942,0.00142552,42199.0,42198.0,0.50850365]
[1644722247141,0.00142552,42199.0,42198.0,0.83998765]
[1644722247745,0.00142552,42199.0,42198.0,0.25106421]
[1644722247945,0.00142552,42199.0,42198.0,0.25106569]
[1644722248445,0.00142552,42199.0,42197.0,0.25106569]
[1644722248696,0.00142552,42199.0,42198.0,0.20088771]
[1644722250299,0.01203452,42199.0,42198.0,0.20088771]
[1644722250597,0.00270217,42199.0,42198.0,0.20088771]
[1644722252742,0.00270217,42199.0,42197.0,0.25106569]
[1644722256598,0.00142552,42199.0,42198.0,0.20096585]
[1644722257500,0.00142552,42199.0,42198.0,0.19596585]
[1644722257700,0.00142552,42199.0,42196.0,0.25156515]
[1644722258102,0.00142552,42199.0,42196.0,0.25106569]
[1644722259304,0.00142552,42199.0,42197.0,0.25106569]
[1644722259504,0.00142552,42199.0,42196.0,0.25106569]
[1644722260743,0.00019226,42199.0,42196.0,0.25106569]
[1644722261943,0.010609,42198.0,42196.0,0.25106569]
[1644722263348,0.00019226,42199.0,42196.0,0.25106569]
[1644722263791,0.00019226,42199.0,42197.0,0.25106569]
[1644722266192,0.00019226,42199.0,42197.0,0.25318413]
[1644722268046,0.00019226,42199.0,42198.0,0.20102804]
[1644722268250,0.00019226,42199.0,42197.0,0.20314648]
[1644722269048,0.00019226,42199.0,42198.0,0.20102804]
[1644722269852,0.00019226,42199.0,42197.0,0.00211844]
[1644722269853,0.01080126,42199.0,42197.0,0.00211844]
[1644722270850,0.00019226,42199.0,42196.0,0.2013102]
[1644722271297,0.00019226,42199.0,42197.0,0.20102804]
[1644722272298,0.00019226,42199.0,42195.0,0.25278493]
[1644722272299,0.00019226,42199.0,42196.0,0.25106569]
[1644722272497,0.00019226,42199.0,42198.0,0.20104889]
[1644722272800,0.00019226,42199.0,42196.0,0.25134786]
[1644722273597,0.00019226,42199.0,42196.0,0.25106569]
[1644722273797,0.00019226,42199.0,42195.0,0.21178091]
[1644722273798,0.00019226,42199.0,42197.0,0.25106569]
[1644722275044,0.00019226,42199.0,42198.0,0.215019]
[1644722275243,0.00019226,42199.0,42198.0,0.546503]
[1644722275448,0.00019226,42199.0,42198.0,0.84775037]
[1644722275642,0.00019226,42199.0,42198.0,0.51626637]
[1644722275842,0.00019226,42199.0,42198.0,0.84775037]
[1644722276646,0.00019226,42199.0,42198.0,0.51626637]
[1644722276845,0.00019226,42199.0,42198.0,0.84899941]
[1644722277147,0.00019226,42199.0,42198.0,0.51751541]
[1644722277545,0.00019226,42199.0,42198.0,1.10823641]
[1644722277746,0.00019226,42199.0,42198.0,1.16760786]
[1644722277951,0.00019226,42199.0,42198.0,1.30945523]
[1644722278347,0.00019226,42199.0,42198.0,1.27086599]
[1644722278597,0.00011813,42199.0,42198.0,1.27086599]
[1644722279499,0.00011813,42199.0,42198.0,1.77086599]
[1644722281401,0.00011813,42199.0,42198.0,3.02586599]
[1644722291950,0.00011813,42199.0,42198.0,3.52586599]
[1644722293248,0.00011813,42199.0,42198.0,3.87230166]
[1644722293453,0.00011813,42199.0,42198.0,3.86730166]
[1644722302296,0.00011813,42199.0,42198.0,3.52086599]
[1644722302497,0.00011813,42199.0,42198.0,3.86730166]
[1644722309801,0.00011813,42199.0,42198.0,2.86730166]
[1644722310701,0.00011813,42199.0,42198.0,3.86730166]
[1644722312546,0.00011813,42199.0,42198.0,3.65228266]
[1644722312750,0.00011813,42199.0,42198.0,4.00359881]
[1644722312952,0.00011813,42199.0,42198.0,3.65716314]
[1644722313747,0.00011813,42199.0,42198.0,2.40216314]
[1644722314749,0.00011813,42199.0,42198.0,3.65716314]
[1644722314951,0.00011813,42199.0,42198.0,2.05084699]
[1644722315350,0.00011813,42199.0,42198.0,3.30584699]
[1644722315750,0.00011813,42199.0,42198.0,3.30084699]
[1644722323601,0.00011813,42199.0,42198.0,2.30084699]
[1644722324403,0.00011813,42199.0,42198.0,3.30084699]
[1644722326105,0.00011813,42199.0,42198.0,3.70201893]
[1644722328452,0.00011813,42199.0,42198.0,3.30084699]
[1644722328954,0.00011813,42199.0,42198.0,2.44776045]
[1644722329553,0.00011813,42199.0,42198.0,2.04584699]
[1644722330154,0.00011813,42199.0,42198.0,2.04636803]
[1644722331303,0.00011813,42199.0,42198.0,2.44829782]
[1644722331503,0.00011813,42199.0,42198.0,2.04636803]
[1644722332309,0.00011813,42199.0,42198.0,2.39830331]
[1644722332505,0.00011813,42199.0,42198.0,2.44830331]
[1644722336254,0.00022784,42214.0,42198.0,2.44830331]
[1644722336456,0.00072926,42204.0,42202.0,0.331484]
[1644722336655,0.00072926,42204.0,42203.0,0.21892958]
[1644722336856,0.00050142,42204.0,42203.0,0.65041358]
[1644722337359,0.00022784,42214.0,42210.0,0.21524204]
[1644722337569,0.27999247,42215.0,42211.0,0.25111297]
[1644722337758,0.27999247,42215.0,42214.0,0.20088731]
[1644722337957,0.00022784,42216.0,42214.0,0.20088731]
[1644722338161,0.00022784,42217.0,42214.0,0.25111297]
[1644722338360,0.00022784,42219.0,42216.0,0.20085405]
[1644722338602,0.30022784,42220.0,42217.0,0.20085405]
[1644722338804,0.00050135,42218.0,42217.0,0.43389323]
[1644722339003,0.00039977,42218.0,42217.0,0.43389323]
[1644722339404,0.00039977,42218.0,42217.0,0.23303918]
[1644722339706,0.20142981,42221.0,42217.0,0.23303918]
[1644722340005,0.00022784,42219.0,42217.0,0.23303918]
[1644722340208,0.20165765,42221.0,42217.0,0.23303918]
[1644722340407,0.010609,42220.0,42217.0,0.23303918]
[1644722340605,0.01083684,42220.0,42217.0,0.23303918]
[1644722342563,0.01083684,42220.0,42217.0,0.43389323]
[1644722342765,0.010609,42220.0,42217.0,0.43389323]
[1644722343062,0.010609,42221.0,42217.0,0.43389323]
[1644722343460,0.01083684,42221.0,42217.0,0.43389323]
[1644722343659,0.01111032,42221.0,42217.0,0.43389323]
[1644722344060,0.01111032,42221.0,42217.0,0.23303918]
[1644722344461,0.010609,42221.0,42217.0,0.23303918]
[1644722344863,0.01111032,42221.0,42217.0,0.23303918]
[1644722345061,0.01111032,42221.0,42216.0,0.20085405]
[1644722345368,0.01111032,42221.0,42215.0,0.20085405]
[1644722345562,0.010609,42219.0,42214.0,0.20085405]
[1644722345864,0.010609,42216.0,42210.0,0.20085405]
[1644722346119,0.010609,42216.0,42209.0,0.20085405]
[1644722346120,0.08993757,42211.0,42209.0,0.20085405]
[1644722346317,0.25452981,42215.0,42208.0,0.20085405]
[1644722346318,0.27768377,42210.0,42208.0,0.20085405]
[1644722346518,0.0531,42209.0,42208.0,0.20085405]
[1644722346718,0.14797063,42210.0,42208.0,0.20090849]
[1644722346918,0.0531,42209.0,42208.0,0.20090849]
[1644722348120,0.0531,42209.0,42207.0,0.25111297]
[1644722348319,0.05332784,42209.0,42207.0,0.25111297]
[1644722348519,0.00022784,42213.0,42206.0,0.25111297]
[1644722348720,0.36789591,42214.0,42209.0,0.20092817]
[1644722348920,0.00022784,42213.0,42209.0,0.20092817]
[1644722349220,0.23267718,42212.0,42209.0,0.20092817]
[1644722350663,0.27724093,42211.0,42209.0,0.20092817]
[1644722350864,0.27746877,42211.0,42209.0,0.20092817]
[1644722352766,0.00022784,42211.0,42209.0,0.20092817]
[1644722352971,0.23267718,42212.0,42209.0,0.20092817]
[1644722353167,0.00022784,42211.0,42209.0,0.20092817]
[1644722353367,0.23290502,42212.0,42209.0,0.20092817]
[1644722353609,0.23267718,42212.0,42209.0,0.20092817]
[1644722353809,0.23267718,42212.0,42208.0,0.20092817]
[1644722354613,0.00022784,42213.0,42209.0,0.20092817]
[1644722355216,0.33930283,42214.0,42209.0,0.20092817]
[1644722355416,0.00022784,42213.0,42208.0,0.20092817]
[1644722355622,0.54043713,42214.0,42208.0,0.20092817]
[1644722355818,0.54020929,42214.0,42208.0,0.20092817]
[1644722356118,0.54020929,42214.0,42209.0,0.20092817]
[1644722357754,0.54020929,42214.0,42208.0,0.20092817]
[1644722357955,0.54020929,42214.0,42209.0,0.20092817]
[1644722358354,0.33930283,42214.0,42209.0,0.20092817]
[1644722358562,0.119,42217.0,42212.0,0.20780149]
[1644722358563,0.00022784,42216.0,42212.0,0.20780149]
[1644722358758,0.202009,42220.0,42214.0,0.20092817]
[1644722358759,0.00050134,42220.0,42214.0,0.20092817]
[1644722358954,0.577,42226.0,42213.0,0.25642783]
[1644722358955,0.0002284,42216.0,42215.0,0.20092817]
[1644722359155,0.0002284,42221.0,42215.0,0.20092817]
[1644722359356,0.00050136,42220.0,42216.0,0.19102525]
[1644722360254,0.0002284,42221.0,42216.0,0.19102525]
[1644722360454,0.00050138,42220.0,42216.0,0.19102525]
[1644722361318,0.0002284,42221.0,42216.0,0.19102525]
[1644722361520,0.0002284,42222.0,42216.0,0.19102525]
[1644722361719,0.00050138,42220.0,42216.0,0.39195342]
[1644722361917,0.00050138,42220.0,42216.0,0.19102525]
[1644722362618,0.0002284,42222.0,42216.0,0.19102525]
[1644722362820,0.00050138,42220.0,42216.0,0.19102525]
[1644722363920,0.0002284,42221.0,42216.0,0.19102525]
[1644722364118,0.00050138,42220.0,42216.0,0.19102525]
[1644722364961,0.0002284,42221.0,42216.0,0.19102525]
[1644722365259,0.00050138,42220.0,42216.0,0.19102525]
[1644722366260,0.0002284,42221.0,42216.0,0.19102525]
[1644722366461,0.00050138,42220.0,42216.0,0.19102525]
[1644722367464,0.0002284,42222.0,42216.0,0.19102525]
[1644722367666,0.00050138,42220.0,42216.0,0.19102525]
[1644722368709,0.0002284,42221.0,42216.0,0.19102525]
[1644722368904,0.00039717,42220.0,42216.0,0.19102525]
[1644722369906,0.0002284,42222.0,42216.0,0.19102525]
[1644722370106,0.0302284,42223.0,42216.0,0.19102525]
[1644722370306,0.27673581,42222.0,42216.0,0.19102525]
[1644722370506,0.27696421,42222.0,42216.0,0.19102525]
[1644722370806,0.27696421,42222.0,42213.0,0.20092817]
[1644722371606,0.27696421,42222.0,42214.0,0.25249418]
[1644722373764,0.27746556,42222.0,42214.0,0.25249418]
[1644722374662,0.27696421,42222.0,42214.0,0.25249418]
[1644722374863,0.00072975,42222.0,42214.0,0.45342235]
[1644722375461,0.00072975,42222.0,42215.0,0.20092817]
[1644722375661,0.00072975,42222.0,42214.0,0.45342235]
[1644722375863,0.0002284,42222.0,42221.0,0.21733987]
[1644722376117,0.00050136,42222.0,42221.0,0.21733987]
[1644722376719,0.17686784,42220.0,42218.0,0.20092817]
[1644722376916,0.17686784,42220.0,42219.0,0.20092817]
[1644722377116,0.17686784,42220.0,42219.0,0.46481619]
[1644722377520,0.17686784,42220.0,42219.0,0.26388802]
[1644722380362,0.17686784,42220.0,42216.0,0.20092817]
[1644722381368,0.17686784,42220.0,42217.0,0.22114946]
[1644722383815,0.17686784,42220.0,42217.0,0.42207763]
[1644722384715,0.17709624,42220.0,42217.0,0.22114946]
[1644722384916,0.17686784,42220.0,42217.0,0.22114946]
[1644722385517,0.17686784,42220.0,42217.0,0.42207763]
[1644722385918,0.17709624,42220.0,42217.0,0.42207763]
[1644722386120,0.17686784,42220.0,42217.0,0.42207763]
[1644722387123,0.17709624,42220.0,42217.0,0.42207763]
[1644722387360,0.17686784,42220.0,42217.0,0.22114946]
[1644722388360,0.17709624,42220.0,42217.0,0.22114946]
[1644722388558,0.17686784,42220.0,42217.0,0.22114946]
[1644722389562,0.17709624,42220.0,42217.0,0.22114946]
[1644722389762,0.17686784,42220.0,42217.0,0.22114946]
[1644722390764,0.17709624,42220.0,42217.0,0.22114946]
[1644722390965,0.17686784,42220.0,42217.0,0.22114946]
[1644722391810,0.17709624,42220.0,42217.0,0.22114946]
[1644722392208,0.17686784,42220.0,42217.0,0.22114946]
[1644722393209,0.17709624,42220.0,42217.0,0.22114946]
[1644722393409,0.17686784,42220.0,42217.0,0.22114946]
[1644722393909,0.17686784,42220.0,42217.0,0.42207763]
[1644722397662,0.17686784,42220.0,42217.0,0.20092817]
[1644722397863,0.17709624,42220.0,42217.0,0.20092817]
[1644722398063,0.17686784,42220.0,42217.0,0.20092817]
[1644722399114,0.17709624,42220.0,42217.0,0.20092817]
[1644722399315,0.17686784,42220.0,42217.0,0.20092817]